Workbook

Sheet données peuplement
A1: densité de plantation | C1: ou | D1: espacement moyen (m) de plantation
A3: hauteur | B3: densité | C3: ou | D3: espacement moyen (m) | E3: S%
A4: 5 | E4: =IF(B4>0,10746/(A4*SQRT(B4)),D4/A4*100) -> 0
A5: 10 | E5: =IF(B5>0,10746/(A5*SQRT(B5)),D5/A5*100) -> 0
A6: 10 | E6: 0
A7: 13 | E7: 0
A8: 13 | E8: 0
A9: 16 | E9: 0
A10: 16 | E10: 0
A11: 19 | E11: 0
A12: 19 | E12: 0
A13: 23 | E13: 0
A14: 23 | E14: 0
A15: 25 | E15: 0
A20: Mode d'emploi
A21: les cellules en jaunes sont à remplir
A22: les hauteurs peuvent si besoin être modifiées
A23: lors d'une éclaircie, indiquez la densité avant puis après éclaircie pour la même hauteur
A25: Pour toute question : Jérôme ROSA (CRPF) au 02 48 26 43 08 - 06 14 52 88 65
A26: ou jerome.rosa@crpf.fr

Sheet S% (hidden)
A1: S% | B1: 0.2 | D1: S% | E1: 0.3 | G1: S% | H1: 0.5 | J1: S% | K1: 1 | M1: S% | N1: 0.15 | P1: quadrillage des absisses
A2: Ho | B2: N | D2: Ho | E2: N | G2: Ho | H2: N | J2: Ho | K2: N | M2: Ho | N2: N | P2: N | Q2: Ho4 | R2: Ho5 | S2: Ho6 | T2: Ho7 | U2: Ho8 | V2: Ho9 | W2: Ho10 | X2: Ho11 | Y2: Ho12 | Z2: Ho13 | AA2: Ho14 | AB2: Ho15 | AC2: Ho16 | AD2: Ho17 | AE2: Ho18 | AF2: Ho19 | AG2: Ho20 | AH2: Ho21 | AI2: Ho22 | AJ2: Ho23 | AK2: Ho24 | AL2: Ho25 | AM2: Ho26 | AN2: Ho27 | AO2: Ho28 | AP2: Ho29 | AQ2: Ho30 | AR2: Ho31 | AS2: Ho32 | AT2: Ho33 | AU2: Ho34 | AV2: Ho35 | AW2: Ho36 | AX2: Ho37 | AY2: Ho38 | AZ2: Ho39 | BA2: Ho40
A3: =$A$10/(((B3*50000)^0.5)*$B$1)/400 -> 0.1899589214 | B3: 0.001 | C3: =B3*50000 -> 50 | D3: =$A$10/(((50000*E3)^0.5)*$E$1)/400 -> 0.1266392809 | E3: 0.001 | G3: =$A$10/(((50000*H3)^0.5)*$H$1)/400 -> 0.07598356857 | H3: 0.001 | J3: =$A$10/(((50000*K3)^0.5)*$K$1)/400 -> 0.03799178428 | K3: 0.001 | M3: =$A$10/(((50000*N3)^0.5)*$N$1)/400 -> 0.2532785619 | N3: 0.001 | P3: 0.1 | Q3: 0.01 | R3: =5/400 -> 0.0125 | S3: =6/400 -> 0.015 | T3: =7/400 -> 0.0175 | U3: =8/400 -> 0.02 | V3: =9/400 -> 0.0225 | W3: =10/400 -> 0.025 | X3: =11/400 -> 0.0275 | Y3: =12/400 -> 0.03 | Z3: =13/400 -> 0.0325 | AA3: =14/400 -> 0.035 | AB3: =15/400 -> 0.0375 | AC3: =16/400 -> 0.04 | AD3: =17/400 -> 0.0425 | AE3: =18/400 -> 0.045 | AF3: =19/400 -> 0.0475 | AG3: =20/400 -> 0.05 | AH3: 0.0525 | AI3: 0.055 | AJ3: 0.0575 | AK3: 0.06 | AL3: 0.0625 | AM3: 0.065 | AN3: 0.0675 | AO3: 0.07 | AP3: 0.0725 | AQ3: 0.075 | AR3: 0.0775 | AS3: 0.08 | AT3: 0.0825 | AU3: 0.085 | AV3: 0.0875 | AW3: 0.09 | AX3: 0.0925 | AY3: 0.095 | AZ3: 0.0975 | BA3: 0.1
A4: =$A$10/(((50000*B4)^0.5)*$B$1)/400 -> 0.08495221224 | B4: =250/50000 -> 0.005 | C4: =B4*50000 -> 250 | D4: =$A$10/(((50000*E4)^0.5)*$E$1)/400 -> 0.05663480816 | E4: =250/50000 -> 0.005 | G4: =$A$10/(((50000*H4)^0.5)*$H$1)/400 -> 0.0339808849 | H4: =250/50000 -> 0.005 | J4: =$A$10/(((50000*K4)^0.5)*$K$1)/400 -> 0.01699044245 | K4: =250/50000 -> 0.005 | M4: =$A$10/(((50000*N4)^0.5)*$N$1)/400 -> 0.1132696163 | N4: =250/50000 -> 0.005 | P4: 0.001 | Q4: 0.01 | R4: =5/400 -> 0.0125 | S4: =6/400 -> 0.015 | T4: =7/400 -> 0.0175 | U4: =8/400 -> 0.02 | V4: =9/400 -> 0.0225 | W4: =10/400 -> 0.025 | X4: =11/400 -> 0.0275 | Y4: =12/400 -> 0.03 | Z4: =13/400 -> 0.0325 | AA4: =14/400 -> 0.035 | AB4: =15/400 -> 0.0375 | AC4: =16/400 -> 0.04 | AD4: =17/400 -> 0.0425 | AE4: =18/400 -> 0.045 | AF4: =19/400 -> 0.0475 | AG4: =20/400 -> 0.05 | AH4: 0.0525 | AI4: 0.055 | AJ4: 0.0575 | AK4: 0.06 | AL4: 0.0625 | AM4: 0.065 | AN4: 0.0675 | AO4: 0.07 | AP4: 0.0725 | AQ4: 0.075 | AR4: 0.0775 | AS4: 0.08 | AT4: 0.0825 | AU4: 0.085 | AV4: 0.0875 | AW4: 0.09 | AX4: 0.0925 | AY4: 0.095 | AZ4: 0.0975 | BA4: 0.1
A5: =$A$10/(((50000*B5)^0.5)*$B$1)/400 -> 0.01899589214 | B5: 0.1 | C5: =B5*50000 -> 5000 | D5: =$A$10/(((50000*E5)^0.5)*$E$1)/400 -> 0.01266392809 | E5: 0.1 | G5: =$A$10/(((50000*H5)^0.5)*$H$1)/400 -> 0.007598356857 | H5: 0.1 | J5: =$A$10/(((50000*K5)^0.5)*$K$1)/400 -> 0.003799178428 | K5: 0.1 | M5: =$A$10/(((50000*N5)^0.5)*$N$1)/400 -> 0.02532785619 | N5: 0.1
P6: quadrillage des ordonnées
P7: Ho | Q7: N50 | R7: N100 | S7: N150 | T7: N200 | U7: N250 | V7: N300 | W7: N350 | X7: N400 | Y7: N450 | Z7: N500 | AA7: N600 | AB7: N700 | AC7: N800 | AD7: N900 | AE7: N1000 | AF7: N1100 | AG7: N1200 | AH7: N1300 | AI7: N1400 | AJ7: N1500 | AK7: N1600 | AL7: N1700 | AM7: N1800 | AN7: N1900 | AO7: N2000 | AP7: N2500 | AQ7: N3000 | AR7: N3500 | AS7: N4000 | AT7: N4500 | AU7: N5000
P8: 0.001 | Q8: 0.001 | R8: 0.002 | S8: 0.003 | T8: 0.004 | U8: 0.005 | V8: 0.006 | W8: 0.007 | X8: 0.008 | Y8: 0.009 | Z8: 0.01 | AA8: 0.012 | AB8: 0.014 | AC8: 0.016 | AD8: 0.018 | AE8: 0.02 | AF8: 0.022 | AG8: 0.024 | AH8: 0.026 | AI8: 0.028 | AJ8: 0.03 | AK8: 0.032 | AL8: 0.034 | AM8: 0.036 | AN8: 0.038 | AO8: 0.04 | AP8: 0.05 | AQ8: 0.06 | AR8: 0.07 | AS8: 0.08 | AT8: 0.09 | AU8: 0.1
P9: 0.1 | Q9: 0.001 | R9: 0.002 | S9: 0.003 | T9: 0.004 | U9: 0.005 | V9: 0.006 | W9: 0.007 | X9: 0.008 | Y9: 0.009 | Z9: 0.01 | AA9: 0.012 | AB9: 0.014 | AC9: 0.016 | AD9: 0.018 | AE9: 0.02 | AF9: 0.022 | AG9: 0.024 | AH9: 0.026 | AI9: 0.028 | AJ9: 0.03 | AK9: 0.032 | AL9: 0.034 | AM9: 0.036 | AN9: 0.038 | AO9: 0.04 | AP9: 0.05 | AQ9: 0.06 | AR9: 0.07 | AS9: 0.08 | AT9: 0.09 | AU9: 0.1
A10: =(20000/3^0.5)^0.5 -> 107.4569932
P11: Echelle absisses
P12: N
P13: 0.1 | Q13: 4.5 | R13: 5.5 | S13: 6.5 | T13: 7.5 | U13: 8.5 | V13: 9.5 | W13: 10.5 | X13: 11.5 | Y13: 12.5 | Z13: 13.5 | AA13: 14.5 | AB13: 15.5 | AC13: 16.5 | AD13: 17.5 | AE13: 18.5 | AF13: 19.5 | AG13: 21 | AH13: 22 | AI13: 23 | AJ13: 24 | AK13: 25 | AL13: 26
P14: 0.001
A17: S% | B17: 0.25
A18: Ho | B18: N
A19: =$A$10/(((50000*B19)^0.5)*$B$17)/400 -> 0.1519671371 | B19: 0.001
A20: =$A$10/(((50000*B20)^0.5)*$B$17)/400 -> 0.06796176979 | B20: =250/50000 -> 0.005
A21: =$A$10/(((50000*B21)^0.5)*$B$17)/400 -> 0.01519671371 | B21: 0.1
A26: Plt1
A27: Ho | B27: N | C27: Ho/400 | D27: N/50000
A28: 0.1 | B28: =IF('données peuplement'!B1>0,'données peuplement'!B1,(107.46/('données peuplement'!E1))^2) ->  | C28: =A28/400 -> 0.00025 | D28: =B28/50000 -> 
A29: ='données peuplement'!A4 -> 5 | B29: =IF('données peuplement'!B4>0,'données peuplement'!B4,(107.46/'données peuplement'!D4)^2) ->  | C29: =A29/400 -> 0.0125
A30: ='données peuplement'!A5 -> 10 | B30: =IF('données peuplement'!B5>0,'données peuplement'!B5,(107.46/'données peuplement'!D5)^2) ->  | C30: 0.025
A31: ='données peuplement'!A6 -> 10 | B31: =IF('données peuplement'!B6>0,'données peuplement'!B6,(107.46/'données peuplement'!D6)^2) ->  | C31: 0.025
A32: ='données peuplement'!A7 -> 13 | B32: =IF('données peuplement'!B7>0,'données peuplement'!B7,(107.46/'données peuplement'!D7)^2) ->  | C32: 0.0325
A33: ='données peuplement'!A8 -> 13 | B33: =IF('données peuplement'!B8>0,'données peuplement'!B8,(107.46/'données peuplement'!D8)^2) ->  | C33: 0.0325
A34: ='données peuplement'!A9 -> 16 | B34: =IF('données peuplement'!B9>0,'données peuplement'!B9,(107.46/'données peuplement'!D9)^2) ->  | C34: =A34/400 -> 0.04 | D34: =B34/50000 -> 
A35: ='données peuplement'!A10 -> 16 | B35: =IF('données peuplement'!B10>0,'données peuplement'!B10,(107.46/'données peuplement'!D10)^2) ->  | C35: 0.04
A36: ='données peuplement'!A11 -> 19 | B36: =IF('données peuplement'!B11>0,'données peuplement'!B11,(107.46/'données peuplement'!D11)^2) ->  | C36: 0.0475
A37: ='données peuplement'!A12 -> 19 | B37: =IF('données peuplement'!B12>0,'données peuplement'!B12,(107.46/'données peuplement'!D12)^2) ->  | C37: 0.0475
A38: ='données peuplement'!A13 -> 23 | B38: =IF('données peuplement'!B13>0,'données peuplement'!B13,(107.46/'données peuplement'!D13)^2) ->  | C38: 0.0575
A39: ='données peuplement'!A14 -> 23 | B39: =IF('données peuplement'!B14>0,'données peuplement'!B14,(107.46/'données peuplement'!D14)^2) ->  | C39: 0.0575
A40: ='données peuplement'!A15 -> 25 | B40: =IF('données peuplement'!B15>0,'données peuplement'!B15,(107.46/'données peuplement'!D15)^2) ->  | C40: 0.0625
E45: =SQRT(10000/0.866) -> 107.4585693
